bitfinex/quotes_ETHUSD_20251021
["timestamp","ask_amount","ask_price","bid_price","bid_amount"]
[1761081181271,21.3760825,3967.6,3967.1,0.2163]
[1761081181574,41.7943685,3967.6,3967.3,0.4611]
[1761081181768,33.3064185,3967.6,3967.3,0.4611]
[1761081181964,33.3064185,3967.6,3967.5,0.4631]
[1761081181965,7.81938257,3967.6,3967.5,0.4631]
[1761081182166,4.61638257,3967.6,3967.5,0.4631]
[1761081182394,15.55432796,3967.6,3967.5,0.4631]
[1761081182558,16.06120796,3967.6,3967.5,0.4631]
[1761081182960,22.58963696,3967.6,3967.5,0.002]
[1761081183188,23.09651696,3967.6,3967.5,0.002]
[1761081183401,21.01810396,3967.6,3967.5,0.002]
[1761081184106,34.10161096,3967.6,3967.5,0.002]
[1761081184982,39.74673296,3967.6,3967.5,0.002]
[1761081185182,25.27324396,3967.6,3967.5,0.002]
[1761081185996,27.74463596,3967.6,3967.5,0.002]
[1761081186293,25.20189096,3967.6,3967.5,0.002]
[1761081187206,27.74570596,3967.6,3967.5,0.002]
[1761081187875,25.21114596,3967.6,3967.5,0.002]
[1761081188103,16.06120796,3967.6,3967.5,0.002]
[1761081188309,25.21242696,3967.6,3967.5,0.4631]
[1761081188507,24.86830096,3967.6,3967.5,0.4631]
[1761081188709,23.58774922,3967.6,3967.5,0.4631]
[1761081189217,26.75542946,3967.6,3967.5,0.4631]
[1761081189608,26.46600746,3967.6,3967.5,0.4631]
[1761081190216,19.84432222,3967.6,3967.5,0.4631]
[1761081190599,18.16270022,3967.6,3967.5,0.4631]
[1761081191314,25.45567422,3967.6,3967.5,0.4631]
[1761081191619,25.24867422,3967.6,3967.5,0.4631]
[1761081192191,22.19184515,3967.6,3967.5,0.4631]
[1761081192391,8.94284721,3967.6,3967.5,0.4631]
[1761081192596,14.66626257,3967.6,3967.5,0.4631]
[1761081192798,12.14584721,3967.6,3967.5,0.4631]
[1761081193117,14.66626257,3967.6,3967.5,0.4631]
[1761081195320,21.12065622,3967.6,3967.5,0.4631]
[1761081196321,18.60024086,3967.6,3967.5,0.4631]
[1761081197454,21.12065622,3967.6,3967.5,0.4631]
[1761081198222,18.60024086,3967.6,3967.5,0.4631]
[1761081198952,21.12065622,3967.6,3967.5,0.4631]
[1761081200443,21.12065622,3967.6,3967.5,0.002]
[1761081201353,21.12065622,3967.6,3967.5,0.4714]
[1761081205840,21.51594228,3967.6,3967.5,0.4714]
[1761081206041,21.12065622,3967.6,3967.5,0.4714]
[1761081212787,21.12065622,3967.6,3967.5,0.002]
[1761081213156,36.4659983,3967.6,3967.5,0.002]
[1761081213359,31.9563453,3967.6,3967.5,0.4726]
[1761081213593,32.86398241,3967.6,3967.5,0.4726]
[1761081213962,29.66198241,3967.6,3967.5,0.002]
[1761081214288,32.86398241,3967.6,3967.5,0.002]
[1761081215099,41.9922173,3967.6,3967.5,0.002]
[1761081215301,34.7927703,3967.6,3967.5,0.002]
[1761081215901,35.70048737,3967.6,3967.5,0.002]
[1761081216087,38.01130837,3967.6,3967.5,0.002]
[1761081216275,38.01133094,3967.6,3967.5,0.002]
[1761081216465,37.51437994,3967.6,3967.5,0.002]
[1761081216982,38.51437994,3967.6,3967.5,0.002]
[1761081217184,37.6066403,3967.6,3967.5,0.002]
[1761081217384,30.9043883,3967.6,3967.5,0.002]
[1761081217586,27.8607403,3967.6,3967.5,0.002]
[1761081217998,21.4453963,3967.6,3967.5,0.002]
[1761081218296,26.4123403,3967.6,3967.5,0.002]
[1761081218997,21.4453963,3967.6,3967.5,0.002]
[1761081219296,26.9133403,3967.6,3967.5,0.002]
[1761081220198,33.1106143,3967.6,3967.5,0.002]
[1761081221296,30.8297913,3967.6,3967.5,0.002]
[1761081221495,28.4594793,3967.6,3967.5,0.002]
[1761081221795,26.9325223,3967.6,3967.5,0.002]
[1761081221961,8.43596721,3967.6,3967.5,0.4726]
[1761081222157,11.63796721,3967.6,3967.5,0.4726]
[1761081222362,12.14484721,3967.6,3967.5,0.4726]
[1761081222563,0.54076721,3967.6,3967.5,0.4726]
[1761081222809,0.54076721,3967.7,3967.5,0.77211391]
[1761081223002,3.202,3967.6,3967.5,0.002]
[1761081223303,5.80484721,3967.6,3967.5,2.52247889]
[1761081223488,5.80484721,3967.6,3967.5,2.99307889]
[1761081224267,5.26408,3967.6,3967.5,2.99307889]
[1761081225105,5.26408,3967.6,3967.5,0.4726]
[1761081225401,18.69015966,3967.6,3967.5,0.002]
[1761081225610,12.58847438,3967.6,3967.5,0.002]
[1761081225844,15.10888974,3967.6,3967.5,0.4726]
[1761081226184,12.58847438,3967.6,3967.5,0.4726]
[1761081226590,12.2627343,3967.6,3967.5,0.4726]
[1761081227095,5.80834065,3967.6,3967.5,0.002]
[1761081227310,5.80834065,3967.6,3967.5,0.4726]
[1761081230115,5.26408,3967.6,3967.5,0.4726]
[1761081232940,11.71847365,3967.6,3967.5,0.4726]
[1761081236427,5.26408,3967.6,3967.5,0.4726]
[1761081241541,2.06208,3967.6,3967.5,0.4726]
[1761081241747,5.26308,3967.6,3967.5,0.4726]
[1761081244446,0.001,3967.8,3967.5,0.4726]
[1761081244447,0.001,3967.8,3967.5,0.772119]
[1761081244666,0.001,3967.8,3967.5,2.99303378]
[1761081244965,0.50788,3967.8,3967.6,2.97898541]
[1761081245170,0.50788,3967.8,3967.7,2.52035184]
[1761081245337,0.50788,3967.8,3967.7,2.97895184]
[1761081249468,0.001,3967.8,3967.7,2.97895184]
[1761081249668,0.001,3967.8,3967.7,3.52929396]
[1761081253186,0.001,3967.8,3967.7,3.55449747]
[1761081253609,0.001,3967.8,3967.7,3.52929396]
[1761081256068,0.001,3967.8,3967.7,4.03717396]
[1761081258467,0.001,3967.8,3967.7,4.06237747]
[1761081259069,0.001,3967.8,3967.7,7.06237747]
[1761081259280,0.001,3967.8,3967.7,7.03717396]
[1761081259476,0.001,3967.8,3967.7,8.59237396]
[1761081260290,1e-08,3968.4,3968.3,2.75567076]
[1761081260608,1e-08,3968.4,3968.3,6.23123784]
[1761081260813,1e-08,3968.4,3968.3,6.66623784]
[1761081261120,1e-08,3968.4,3968.3,6.76725061]
[1761081261317,1e-08,3968.4,3968.3,9.76725061]
[1761081266007,1e-08,3968.4,3968.3,11.32245061]
[1761081276452,0.1135,3970.5,3968.3,11.32245061]
[1761081276453,0.50688,3970.4,3970.3,2.51870135]
[1761081276874,0.60638,3970.4,3970.3,2.51870135]
[1761081277075,0.1135,3970.5,3970.3,2.51870135]
[1761081277076,0.62038,3970.5,3970.4,2.51863792]
[1761081277355,0.71988,3970.5,3970.4,2.51863792]
[1761081277551,0.001,3971.0,3970.3,2.51870135]
[1761081277757,0.001,3971.0,3970.8,2.51833665]
[1761081277758,0.0997,3970.9,3970.8,2.51833665]
[1761081277979,0.60658,3970.9,3970.8,2.51833665]
[1761081278979,0.50688,3970.8,3970.7,2.51842959]
[1761081279382,0.60658,3970.8,3970.7,2.51842959]
[1761081279758,0.60658,3970.8,3970.0,3.6657]
[1761081279958,0.60658,3970.8,3970.7,2.51844762]
[1761081281172,0.60658,3970.8,3970.4,2.51859049]
[1761081281405,0.50688,3970.6,3970.5,2.51857165]
[1761081281907,0.50688,3970.9,3970.6,2.518489]
[1761081282607,0.0997,3970.8,3970.6,2.518489]
[1761081283513,0.0997,3970.8,3970.6,2.51850256]
[1761081285020,0.0997,3970.8,3970.7,2.51844762]
[1761081285787,0.50688,3970.7,3970.6,2.51848763]
[1761081286207,0.60658,3970.7,3970.6,2.51848763]
[1761081286717,0.50688,3970.7,3970.6,2.51848763]
[1761081287698,0.60658,3970.7,3970.6,2.51848763]
[1761081288019,0.50688,3970.7,3970.5,2.51851172]
[1761081288221,0.60658,3970.7,3970.5,2.51851172]
[1761081288441,0.50688,3970.7,3970.6,2.51851105]
[1761081289285,0.50688,3970.8,3970.7,2.51844762]
[1761081289525,0.50688,3970.8,3969.8,5.71701836]
[1761081289526,0.50688,3970.8,3968.4,1.5552]
[1761081289740,0.60658,3970.8,3969.3,2.5193359]
[1761081289925,0.60658,3970.8,3969.4,4.10859359]
[1761081290239,0.60658,3970.8,3970.4,2.51858579]
[1761081290611,0.0997,3970.7,3970.5,2.51856229]
[1761081291725,0.50688,3970.8,3970.6,2.51851105]
[1761081292406,0.0997,3970.7,3970.6,2.51851105]
[1761081292611,0.50688,3970.8,3970.7,2.51844762]
[1761081293540,0.50788,3971.0,3970.9,2.51832078]
[1761081295410,0.60798,3971.0,3970.9,2.51832078]
[1761081295824,0.60798,3971.0,3970.7,2.51840282]
[1761081296029,0.60798,3971.0,3970.8,2.51834269]
[1761081296549,0.50788,3971.0,3970.9,2.51832078]
[1761081297356,0.60688,3971.0,3970.9,2.51832078]
[1761081298059,0.60688,3971.0,3970.8,2.5183799]
[1761081298256,0.50688,3970.9,3970.8,2.5183799]
[1761081298756,0.75048,3970.9,3970.8,2.5183799]
[1761081299253,0.50688,3970.8,3970.7,2.5184408]
[1761081299458,0.50688,3970.8,3970.2,3.4219]
[1761081299459,0.1461,3970.9,3970.2,3.8777]
[1761081299660,0.1461,3970.9,3970.2,4.10967]
[1761081299964,0.1461,3970.9,3970.7,2.51842674]
[1761081300334,0.1461,3970.9,3970.8,2.5183842]
[1761081300654,2.06308,3971.0,3970.9,2.51832078]
[1761081301259,0.001,3971.0,3970.9,2.51832078]
[1761081301453,0.001,3971.0,3970.9,3.50298051]
[1761081301957,0.001,3971.0,3970.9,3.47779731]
[1761081303956,0.001,3971.0,3970.9,6.47779731]
[1761081304160,0.001,3971.0,3970.9,9.67479731]
[1761081307890,0.001,3971.0,3970.9,9.77573463]
[1761081308388,0.001,3971.0,3970.9,11.33093463]
[1761081309760,0.001,3971.0,3970.9,6.57873463]
[1761081309964,0.001,3971.0,3970.9,9.77573463]
[1761081310289,0.001,3971.0,3970.9,9.67479731]
[1761081310958,0.001,3971.0,3970.9,6.21899731]
[1761081311156,0.001,3971.0,3970.9,5.71532078]
[1761081311381,0.001,3971.0,3970.9,2.51832078]
[1761081311580,0.60688,3971.0,3970.9,2.51832078]
[1761081311786,0.50688,3970.9,3970.5,3.196]
[1761081311951,0.2431,3970.8,3970.6,2.51850259]
[1761081312152,0.2431,3970.8,3970.7,2.51844762]
[1761081312690,0.65248,3970.8,3970.4,2.51863792]
[1761081312898,0.65248,3970.8,3970.2,2.51876479]
[1761081312899,0.099,3970.7,3970.2,2.51876479]
[1761081313107,0.099,3970.7,3970.5,2.51852776]
[1761081313403,0.099,3970.7,3970.2,0.57157648]
[1761081313404,0.099,3970.7,3970.4,2.51862489]
[1761081313610,0.50688,3970.6,3970.0,2.51883493]
[1761081313899,0.60588,3970.7,3970.0,2.51883493]
[1761081314102,0.50688,3970.6,3970.2,2.51871532]
[1761081314273,0.60588,3970.6,3970.2,2.51871532]
[1761081314593,0.50688,3970.4,3969.4,4.39827713]
[1761081314793,0.50688,3970.1,3969.1,0.002]
[1761081314961,0.50688,3969.8,3969.1,0.002]
[1761081315291,0.50688,3969.8,3969.3,2.51927811]
[1761081315457,0.50688,3969.6,3969.1,0.002]
[1761081315793,6.94482109,3969.6,3969.1,0.002]
[1761081316014,6.94482109,3969.2,3969.1,0.002]
[1761081316161,25.57769846,3969.2,3969.1,0.002]
[1761081316356,9.96992581,3968.9,3968.8,0.002]
[1761081316666,16.29086997,3968.9,3968.8,0.002]
[1761081316866,16.38986997,3968.9,3968.8,0.002]
[1761081317066,23.16932465,3968.9,3968.8,0.002]
[1761081317289,23.73311338,3968.9,3968.8,0.002]
[1761081317497,23.19185549,3968.9,3968.8,0.002]
[1761081318396,30.21076949,3968.9,3968.8,0.002]
[1761081318690,41.52891258,3968.9,3968.8,0.002]
[1761081318896,30.93283699,3968.9,3968.8,0.002]
[1761081319080,31.03389391,3968.9,3968.8,0.002]
[1761081319284,33.58712991,3968.9,3968.8,0.002]
[1761081320305,34.09341791,3968.9,3968.8,0.002]
[1761081321191,33.81354591,3968.9,3968.8,0.002]
[1761081321699,7.53680473,3968.9,3968.8,0.002]
[1761081321902,27.10630191,3968.9,3968.8,0.002]
[1761081322120,27.7605358,3968.9,3968.8,0.002]
[1761081322423,55.1372578,3968.9,3968.8,0.002]
[1761081323830,55.53248188,3968.9,3968.8,0.002]
[1761081324294,44.37657158,3968.9,3968.8,0.002]
[1761081324491,45.66752758,3968.9,3968.8,0.002]
[1761081324718,42.67459958,3968.9,3968.8,0.002]
[1761081325028,39.55059958,3968.9,3968.8,0.002]
[1761081325533,40.59932958,3968.9,3968.8,0.002]
[1761081325831,39.46348458,3968.9,3968.8,0.002]
[1761081326190,34.47226058,3968.9,3968.8,0.002]
[1761081326607,32.39869958,3968.9,3968.8,0.002]
[1761081327640,35.91987158,3968.9,3968.8,0.002]
[1761081327831,35.11465858,3968.9,3968.8,0.002]
[1761081328024,34.48883658,3968.9,3968.8,0.002]
[1761081328646,42.06025958,3968.9,3968.8,0.002]
[1761081328842,38.80951158,3968.9,3968.8,0.002]
[1761081329647,27.04055258,3968.9,3968.8,0.002]
[1761081329851,27.54743258,3968.9,3968.8,0.002]
[1761081330146,30.74643258,3968.9,3968.8,0.002]
[1761081330623,28.41876158,3968.9,3968.8,0.002]
[1761081330823,50.11901158,3968.9,3968.8,0.002]
[1761081331947,37.93772958,3968.9,3968.8,0.002]
[1761081332844,43.90539958,3968.9,3968.8,0.002]
[1761081333347,43.39851958,3968.9,3968.8,0.002]
[1761081333850,53.31468558,3968.9,3968.8,0.002]
[1761081334439,51.00858858,3968.9,3968.8,0.002]
[1761081334745,50.52692758,3968.9,3968.8,0.002]
[1761081335122,27.30741058,3968.9,3968.8,0.002]
[1761081335429,12.0911754,3968.9,3968.8,0.002]
[1761081335733,13.8174104,3968.9,3968.8,0.002]
[1761081336042,13.5571234,3968.9,3968.8,0.002]
[1761081336916,14.0325394,3968.9,3968.8,0.002]
[1761081337626,33.60203658,3968.9,3968.8,0.002]
[1761081337817,48.93144958,3968.9,3968.8,0.002]
[1761081338016,47.78394958,3968.9,3968.8,0.002]
[1761081338746,34.66628862,3968.9,3968.8,0.002]
[1761081338928,36.11577262,3968.9,3968.8,0.002]
[1761081339647,34.76034262,3968.9,3968.8,0.002]
[1761081340224,35.30026485,3968.9,3968.8,0.002]
[1761081340444,35.19920793,3968.9,3968.8,0.002]
[1761081341035,45.73996593,3968.9,3968.8,0.002]
[1761081341223,20.62037576,3968.5,3968.0,0.002]
[1761081341429,32.7078478,3968.5,3968.0,0.002]
[1761081341625,30.9221858,3968.5,3968.0,0.002]
[1761081341832,38.08197622,3968.5,3968.0,0.002]
[1761081342034,2.52066948,3967.2,3967.0,0.002]
[1761081342372,34.58300366,3966.8,3966.7,0.002]
[1761081342572,11.03566631,3965.5,3965.4,0.002]
[1761081342758,14.24266631,3965.5,3965.4,0.002]
[1761081342946,21.5084469,3965.5,3965.4,0.002]
[1761081343148,20.2443849,3965.5,3965.4,0.002]
[1761081343354,17.84227749,3965.5,3965.4,0.002]
[1761081343598,17.84227749,3965.5,3965.4,0.4359]
[1761081343599,5.26908,3965.5,3965.4,0.4359]
[1761081343951,5.26908,3965.5,3965.4,0.002]
[1761081346875,19.50286523,3965.5,3965.4,0.002]
[1761081347050,16.97013423,3965.5,3965.4,0.002]
[1761081347254,16.71378223,3965.5,3965.4,0.002]
[1761081347458,16.61478223,3965.5,3965.4,0.002]
[1761081347792,15.88332882,3965.5,3965.4,0.002]
[1761081347944,23.09945082,3965.5,3965.4,0.002]
[1761081348346,4.58408448,3965.1,3965.0,0.002]
[1761081348644,11.32147462,3965.1,3965.0,0.002]
[1761081348877,10.88367462,3965.1,3965.0,0.002]
[1761081349092,11.74767462,3965.1,3965.0,0.002]
[1761081349838,11.42284262,3965.1,3965.0,0.002]
[1761081350044,12.73884262,3965.1,3965.0,0.002]
[1761081351174,14.04184262,3965.1,3965.0,0.002]
[1761081351373,12.87984262,3965.1,3965.0,0.002]
[1761081352073,13.00364262,3965.1,3965.0,0.002]
[1761081352777,3.02913893,3964.7,3964.1,0.002]
[1761081352976,49.6398274,3964.7,3964.1,0.002]
[1761081353179,37.0092604,3964.7,3964.1,0.002]
[1761081353549,30.1904174,3964.7,3964.1,0.2158]
[1761081353957,41.1660584,3964.7,3964.1,0.002]
[1761081354362,36.4724524,3964.7,3964.1,0.002]
[1761081355181,41.9682284,3964.7,3964.1,0.002]
[1761081355885,41.8692284,3964.7,3964.1,0.002]
[1761081356085,41.4172284,3964.7,3964.1,0.002]
[1761081356288,32.6974284,3964.7,3964.1,0.002]
[1761081356890,13.46139806,3964.2,3964.1,0.002]
[1761081357089,42.67563187,3964.2,3964.1,0.002]
[1761081357290,42.77463187,3964.2,3964.1,0.002]
[1761081358293,53.07843087,3964.2,3964.1,0.002]
[1761081358871,51.62553587,3964.2,3964.1,0.002]
[1761081359073,54.07629087,3964.2,3964.1,0.002]
[1761081359392,25.11365598,3964.2,3964.1,0.002]
[1761081359568,2.06208,3964.1,3961.0,0.2209]
[1761081359773,0.50688,3963.0,3962.5,0.4276]
[1761081359973,3.217,3962.9,3962.5,0.4276]
[1761081360289,0.50688,3962.8,3962.5,0.4276]
[1761081362772,4.58555059,3962.8,3962.5,0.4276]
[1761081363198,0.50688,3962.7,3962.5,0.4276]
[1761081363504,0.50688,3962.7,3957.1,3.16183434]
[1761081363505,5.489721,3962.5,3960.8,0.2209]
[1761081363669,0.50688,3961.6,3961.2,0.6485]
[1761081364002,2.06208,3961.4,3961.3,0.4276]
[1761081364191,4.58644007,3961.4,3961.3,0.4276]
[1761081364503,2.52460084,3961.1,3960.8,0.6485]
[1761081364662,0.50688,3960.9,3960.8,0.6485]
[1761081364867,0.50688,3960.9,3960.8,0.2209]
[1761081365166,0.50688,3960.9,3960.8,0.6485]
[1761081366499,0.50688,3960.9,3960.8,3.17324247]
[1761081366868,0.50688,3960.9,3960.8,0.6485]
[1761081367079,0.50688,3960.9,3960.8,3.17324247]
[1761081367277,1.5552,3962.0,3961.2,2.52448636]
[1761081367596,0.50688,3962.3,3961.1,2.52452567]
[1761081367799,2.06208,3961.7,3961.0,0.4276]
[1761081368116,3.223,3962.2,3960.0,2.7461467]
[1761081368117,0.50688,3961.1,3960.5,0.4276]
[1761081368407,2.06208,3960.9,3960.5,0.4276]
[1761081369675,2.06208,3960.9,3960.4,0.2209]
[1761081370021,4.58676847,3960.9,3960.4,0.6485]
[1761081370179,2.06208,3960.9,3960.4,0.6485]
[1761081370503,2.06208,3960.9,3960.5,0.4276]
[1761081370691,2.06208,3960.9,3960.0,0.2209]
[1761081371007,2.06208,3960.9,3960.1,0.6485]
[1761081371320,2.06208,3960.9,3960.2,0.4276]
[1761081371477,2.06208,3960.9,3960.2,2.9527145]
[1761081371783,2.06208,3960.9,3960.2,0.4276]
[1761081371982,2.06208,3960.9,3960.3,2.52501304]
[1761081372178,2.06208,3960.9,3960.5,2.52490877]
[1761081372594,2.06208,3960.9,3960.6,0.4276]
[1761081372996,0.34151359,3961.6,3960.6,0.4276]
[1761081373196,2.06208,3961.4,3960.7,2.52478824]
[1761081373401,2.06208,3961.4,3960.8,2.52474181]
[1761081373782,2.06208,3961.4,3960.8,2.95234181]
[1761081373973,0.50688,3961.1,3960.1,0.2209]
[1761081374207,0.50688,3960.6,3960.2,0.4276]
[1761081374409,0.50688,3960.4,3960.2,0.4276]
[1761081374610,5.28708,3960.3,3960.2,0.4276]
[1761081375076,5.28708,3960.3,3960.2,2.95272499]
[1761081375708,2.06208,3960.3,3960.2,2.95272499]
[1761081375879,5.28708,3960.3,3960.2,2.95272499]
[1761081376293,2.06208,3960.3,3960.2,2.95272499]
[1761081377034,2.52443762,3961.3,3960.2,1.01957725]
[1761081377035,0.50688,3961.3,3960.2,1.01957725]
[1761081377192,2.06208,3961.1,3960.5,2.52488789]
[1761081377387,0.1362,3961.7,3960.9,2.52465567]
[1761081377617,3.228,3961.6,3960.8,2.52473628]
[1761081377917,1.5552,3961.5,3961.1,2.52454998]
[1761081378122,1.5552,3961.5,3961.0,2.52460989]
[1761081378418,0.50688,3961.4,3960.9,2.95225946]
[1761081378617,0.50688,3961.4,3960.9,0.4276]
[1761081378790,0.50688,3961.4,3961.0,0.4276]
[1761081379187,0.50688,3961.4,3961.1,0.2246]
[1761081379620,0.50688,3961.4,3961.2,0.4519]
[1761081380127,3.73688,3961.3,3961.2,0.4519]
[1761081380291,0.50688,3961.3,3961.2,2.97638752]
[1761081380496,4.7852,3961.3,3961.2,2.97638752]
[1761081380701,5.29208,3961.3,3961.2,2.97638752]
[1761081381929,5.29208,3961.3,3961.2,0.4519]
[1761081382132,5.29208,3961.3,3961.2,2.97638752]
[1761081383447,5.29208,3961.3,3961.2,0.4519]
[1761081384223,5.29208,3961.3,3961.2,2.97638752]
[1761081384742,2.06208,3961.2,3960.8,0.002]
[1761081385104,0.50688,3961.6,3960.8,0.002]
[1761081385303,2.06208,3961.4,3960.8,0.4544]
[1761081385511,4.58645986,3961.4,3960.8,0.4544]
[1761081385935,2.06208,3961.4,3960.8,2.9791328]
[1761081386244,4.58645393,3961.4,3960.8,0.4544]
[1761081386405,3.03136871,3961.2,3960.8,0.4544]
[1761081386754,3.23,3961.1,3960.8,0.002]
[1761081387104,4.58673772,3961.0,3960.8,0.002]
[1761081387338,2.06208,3961.0,3960.8,0.002]
[1761081389274,2.06208,3961.0,3960.8,2.97913875]
[1761081389573,2.06208,3961.0,3960.8,0.4544]
[1761081389755,2.06208,3961.0,3960.8,0.002]
[1761081390647,2.06208,3961.0,3960.8,0.4544]
[1761081391356,1.05077735,3960.9,3960.8,0.4544]
[1761081392276,1.5552,3961.3,3960.8,2.82466187]
[1761081392460,3.227,3961.8,3961.1,2.52455126]
[1761081392645,2.09949074,3961.7,3961.4,2.52431945]
[1761081392836,1.05117074,3961.6,3960.9,0.4524]
[1761081393041,1.5552,3961.4,3961.3,2.5244238]
[1761081393369,0.50688,3961.3,3961.2,2.52444147]
[1761081393568,1.05117074,3961.3,3961.2,2.97684147]
[1761081393755,1.05117074,3961.3,3961.2,3.20764147]
[1761081393960,0.67616857,3961.8,3961.2,1.25641927]
[1761081394160,3.77672019,3961.7,3961.6,2.52423263]
[1761081394369,5.29408,3961.8,3961.7,2.52416891]
[1761081394669,0.50688,3961.3,3960.8,0.002]
[1761081394876,2.06208,3961.1,3960.8,0.002]
[1761081395103,0.50688,3960.9,3960.8,0.002]
[1761081395307,5.13128527,3960.9,3960.8,0.002]
[1761081395604,8.52425384,3960.9,3960.8,0.002]
[1761081395929,8.28929886,3960.9,3960.8,0.002]
[1761081396276,8.68529146,3960.9,3960.8,0.002]
[1761081396520,11.74908143,3960.9,3960.8,0.002]
[1761081397212,11.64938143,3960.9,3960.8,0.002]
[1761081397509,11.64938143,3960.9,3960.0,0.002]
[1761081397510,3.03206875,3960.1,3960.0,0.002]
[1761081397694,23.86504929,3960.1,3960.0,0.002]
[1761081398021,12.39003715,3960.1,3960.0,0.002]
[1761081398181,2.60660654,3960.1,3960.0,0.002]
[1761081398505,9.0527956,3960.1,3960.0,0.002]
[1761081399070,8.37279529,3960.1,3960.0,0.002]
[1761081399295,15.50710229,3960.1,3960.0,0.002]
[1761081399527,12.35435529,3960.1,3960.0,0.002]
[1761081399675,12.76677559,3960.1,3960.0,0.002]
[1761081399873,13.10828918,3960.1,3960.0,0.002]
[1761081400306,3.03296179,3958.7,3958.2,0.2308]
[1761081400509,3.03296179,3958.7,3957.7,0.80922865]
[1761081400510,20.83306692,3958.7,3957.7,0.80922865]
[1761081400805,15.97324433,3958.7,3957.7,0.80922865]
[1761081401286,16.09991844,3958.7,3957.7,0.80922865]
[1761081401476,25.2705168,3958.7,3957.7,0.80922865]
[1761081401790,18.7511978,3958.7,3957.7,0.80922865]
[1761081402406,38.94887603,3958.7,3957.7,0.80922865]
[1761081402613,39.26159633,3958.7,3957.7,0.80922865]
[1761081403197,39.26159633,3958.7,3958.6,0.23305785]
[1761081403397,40.16405742,3958.7,3958.6,0.23305785]
[1761081403913,39.26159633,3958.7,3958.6,0.23305785]
[1761081404406,6.01259633,3958.7,3958.6,0.23305785]
[1761081404606,36.99290403,3958.7,3958.6,0.23305785]
[1761081405187,8.14990503,3958.7,3958.6,0.23305785]
[1761081405413,8.14990503,3958.7,3957.7,0.80922865]
[1761081405414,1.5552,3958.6,3957.7,0.80922865]
[1761081405598,12.92590722,3957.8,3957.7,0.80922865]
[1761081405910,16.18690722,3957.8,3957.7,0.80922865]
[1761081406478,19.28377422,3957.8,3957.7,0.80922865]
[1761081406675,19.77945297,3957.8,3957.7,0.80922865]
[1761081406907,19.28377422,3957.8,3957.7,0.80922865]
[1761081407575,25.94987622,3957.8,3957.7,0.80922865]
[1761081408177,22.37304222,3957.8,3957.7,0.80922865]
[1761081408415,22.27364222,3957.8,3957.7,0.80922865]
[1761081408711,22.27364222,3957.8,3956.7,0.83539945]
[1761081408712,0.50688,3956.8,3956.7,0.83539945]
[1761081408915,5.32108,3956.8,3956.7,0.83539945]
[1761081409278,24.52236478,3956.8,3956.7,0.83539945]
[1761081409596,27.07191378,3956.8,3956.7,0.83539945]
[1761081409796,23.47533837,3956.8,3956.7,0.83539945]
[1761081410002,21.0181526,3956.8,3956.7,0.83539945]
[1761081410217,20.3063726,3956.8,3956.7,0.83539945]
[1761081410421,17.6763726,3956.8,3956.7,0.83539945]
[1761081410620,18.8390986,3956.8,3956.7,0.83539945]
[1761081411122,17.6835726,3956.8,3956.7,0.83539945]
[1761081411694,23.6736496,3956.8,3956.7,0.83539945]
[1761081412589,30.9030286,3956.8,3956.7,0.83539945]
[1761081413209,3.03474976,3955.9,3955.8,0.86157025]
[1761081413413,37.84994976,3955.9,3955.8,0.86157025]
[1761081413590,22.12627176,3955.9,3955.8,0.86157025]
[1761081413795,20.35534176,3955.9,3955.8,0.86157025]
[1761081414846,33.79537476,3955.9,3955.8,0.86157025]
[1761081415127,3.293332,3956.7,3955.8,1.33257025]
[1761081415340,0.39643423,3956.8,3956.6,0.2264]
[1761081415499,2.52711691,3957.1,3956.6,0.2264]
[1761081415500,3.261,3956.7,3956.6,0.2264]
[1761081415702,3.262,3956.7,3956.6,0.2264]
[1761081415901,0.39636761,3956.8,3956.6,0.6974]
[1761081416207,4.8172,3956.7,3956.6,0.2264]
[1761081416408,1.5552,3956.6,3956.2,0.471]
[1761081416609,1.5552,3956.6,3956.3,0.2264]
[1761081416819,3.262,3956.7,3955.8,0.86157025]
[1761081417021,3.03453722,3956.3,3955.9,0.2264]
[1761081417236,0.50688,3956.0,3955.9,0.2264]
[1761081417440,0.50688,3956.0,3955.9,0.6974]
[1761081417831,0.50688,3956.0,3955.9,0.2264]
[1761081418353,4.58988586,3956.0,3955.9,0.2264]
[1761081418719,4.58988586,3956.0,3955.9,0.2284]
[1761081418916,2.06208,3956.0,3955.9,0.002]
[1761081419261,10.55053086,3956.0,3955.9,0.002]
[1761081419853,8.022725,3956.0,3955.9,0.002]
[1761081421175,2.06208,3956.0,3955.9,0.002]
[1761081421394,2.06208,3956.0,3955.9,0.473]
[1761081423642,4.58988586,3956.0,3955.9,0.473]
[1761081423842,2.06208,3956.0,3955.9,0.473]
[1761081424385,0.001,3956.8,3955.9,0.60645703]
[1761081424537,0.001,3956.8,3956.7,0.2264]
[1761081424743,4.8192,3956.8,3956.7,0.6974]
[1761081425080,0.001,3956.8,3956.7,0.6974]
[1761081425768,0.001,3956.8,3956.7,3.22475865]
[1761081425969,0.001,3956.8,3956.7,3.79998289]
[1761081427397,0.001,3956.8,3956.7,3.82525647]
[1761081429393,0.001,3956.8,3956.7,3.79998289]
[1761081429792,0.001,3956.8,3956.7,5.35518289]
[1761081429992,0.001,3956.8,3956.7,8.35518289]
[1761081431788,0.001,3956.8,3956.7,10.06598289]
[1761081432400,0.001,3956.8,3956.7,7.06598289]
[1761081438525,0.001,3956.8,3956.7,10.06598289]
[1761081439702,0.001,3956.8,3956.7,11.62118289]
[1761081439912,0.001,3956.8,3956.7,8.62118289]
[1761081440500,0.001,3956.8,3956.7,7.06598289]
[1761081443507,0.001,3956.8,3956.7,10.06598289]
[1761081444918,0.001,3956.8,3956.7,31.29078274]
[1761081445235,0.001,3956.8,3956.7,31.39207356]
[1761081446002,0.001,3956.8,3956.7,11.72247371]
[1761081447854,1e-08,3957.6,3957.5,2.52684775]